fUSD/lending_fUSD_20240121
["ID","MTS","AMOUNT","RATE_DAILY","PERIOD"]
[312404006,1705858374858,-500.0,0.00044931,31]
[312404007,1705858374868,-500.0,0.00044931,31]
[312404008,1705858374878,-500.0,0.00044931,31]
[312404009,1705858374888,-1062.99,0.00044931,31]
[312404010,1705858374898,-500.0,0.00044931,31]
[312404011,1705858374908,-500.0,0.00044931,31]
[312404012,1705858374919,-730.53,0.00044931,31]
[312404013,1705858374929,-500.0,0.00044931,31]
[312404014,1705858374940,-500.0,0.00044931,31]
[312404015,1705858374951,-500.0,0.00044931,31]
[312404016,1705858374961,-639.15,0.00044931,31]
[312404017,1705858374971,-500.0,0.00044931,31]
[312404018,1705858374981,-500.0,0.00044931,31]
[312404019,1705858374991,-683.37,0.00044931,31]
[312404020,1705858375001,-713.6,0.00044931,31]
[312404021,1705858375012,-522.29,0.00044931,31]
[312404022,1705858375023,-500.0,0.00044931,31]
[312404023,1705858375033,-1341.01,0.00044931,31]
[312404024,1705858375043,-815.74,0.00044931,31]
[312404025,1705858375053,-500.0,0.00044931,31]
[312404026,1705858375063,-908.38,0.00044931,31]
[312404027,1705858375076,-500.0,0.00044931,31]
[312404028,1705858375088,-844.72,0.00044931,31]
[312404029,1705858375098,-500.0,0.00044931,31]
[312404030,1705858375108,-240.15713144,0.00044931,31]
[312404031,1705858375119,-301.24849489,0.00044931,31]
[312404032,1705858375129,-798.26,0.00044931,31]
[312404033,1705858375140,-625.99,0.00044931,31]
[312404034,1705858375150,-944.0,0.00044931,31]
[312404035,1705858375161,-1236.84,0.00044931,31]
[312404036,1705858375172,-506.48249658,0.00044931,31]
[312404037,1705858375182,-772.74,0.00044931,31]
[312404038,1705858375192,-500.0,0.00044931,31]
[312404039,1705858375203,-674.68,0.00044931,31]
[312404040,1705858375213,-677.86,0.00044931,31]
[312404041,1705858375223,-1386.82,0.00044931,31]
[312404042,1705858375234,-575.35,0.00044931,2]
[312404043,1705858375244,-546.59,0.00044931,31]
[312404044,1705858375254,-500.0,0.00044931,31]
[312404045,1705858375301,-1093.4,0.00044931,31]
[312404046,1705858375311,-876.12,0.00044931,31]
[312404047,1705858375321,-1506.33,0.00044931,31]
[312404048,1705858375332,-563.22,0.00044931,31]
[312404049,1705858375342,-775.99,0.00044931,31]
[312404050,1705858375352,-1359.97,0.00044931,31]
[312404051,1705858375363,-500.0,0.00044931,31]
[312404052,1705858375373,-1846.34,0.00044931,31]
[312404053,1705858375383,-706.97,0.00044931,31]
[312404054,1705858375393,-500.0,0.00044931,31]
[312404055,1705858375403,-827.05,0.00044931,31]
[312404056,1705858375413,-500.0,0.00044931,31]
[312404057,1705858375423,-736.6,0.00044931,31]
[312404058,1705858375434,-1026.28,0.00044931,31]
[312404059,1705858375443,-1358.53,0.00044931,31]
[312404060,1705858375453,-1261.93,0.00044931,31]
[312404061,1705858375463,-500.0,0.00044931,31]
[312404062,1705858375473,-500.0,0.00044931,7]
[312404063,1705858375483,-1103.53,0.00044931,31]
[312404064,1705858375493,-800.0,0.00044931,30]
[312404065,1705858375503,-500.0,0.00044931,31]
[312404066,1705858375514,-557.3,0.00044931,31]
[312404067,1705858375524,-568.36,0.00044931,31]
[312404068,1705858375533,-773.33,0.00044931,31]
[312404069,1705858375543,-1341.32,0.00044931,31]
[312404070,1705858375554,-500.0,0.00044931,31]
[312404071,1705858375564,-532.88,0.00044931,31]
[312404072,1705858375574,-500.0,0.00044931,31]
[312404073,1705858375584,-948.55,0.00044931,31]
[312404074,1705858375594,-500.0,0.00044931,31]
[312404075,1705858375604,-500.0,0.00044931,31]
[312404076,1705858375614,-500.0,0.00044931,31]
[312404077,1705858375624,-500.0,0.00044931,31]
[312404078,1705858375634,-713.94,0.00044931,31]
[312404079,1705858375644,-500.0,0.00044931,31]
[312404080,1705858375654,-1009.22,0.00044931,31]
[312404081,1705858375666,-542.43,0.00044931,31]
[312404082,1705858375677,-500.0,0.00044931,31]
[312404083,1705858375687,-500.0,0.00044931,31]
[312404084,1705858375697,-500.0,0.00044931,31]
[312404085,1705858375706,-500.0,0.00044931,31]
[312404086,1705858375716,-1020.8,0.00044931,31]
[312404087,1705858375726,-500.0,0.00044931,31]
[312404088,1705858375736,-674.71,0.00044931,31]
[312404089,1705858375746,-907.75,0.00044931,31]
[312404090,1705858375756,-2628.29,0.00044931,7]
[312404091,1705858375766,-181.47374358,0.00044931,31]
[312404092,1705858375775,-500.0,0.00044931,31]
[312404093,1705858375785,-500.0,0.00044931,31]
[312404094,1705858375795,-500.0,0.00044931,31]
[312404095,1705858375805,-500.0,0.00044931,31]
[312404096,1705858375815,-726.92,0.00044931,31]
[312404097,1705858375825,-802.51,0.00044931,31]
[312404098,1705858375835,-587.9946188,0.00044931,31]
[312404099,1705858375846,-500.0,0.00044931,31]
[312404100,1705858375855,-362.72897822,0.00044931,31]
[312404101,1705858375866,-919.56,0.00044931,31]
[312404102,1705858375876,-3326.6,0.00044931,31]
[312404103,1705858375886,-500.0,0.00044931,31]
[312404104,1705858375896,-604.37,0.00044931,31]
[312404105,1705858375907,-563.35,0.00044931,31]
[312404106,1705858375917,-500.0,0.00044931,31]
[312404107,1705858375927,-500.0,0.00044931,31]
[312404108,1705858375937,-920.57,0.00044931,31]
[312404109,1705858375948,-719.21,0.00044931,31]
[312404110,1705858375958,-973.6,0.00044931,31]
[312404111,1705858375968,-642.1,0.00044931,31]
[312404112,1705858375978,-814.86,0.00044931,31]
[312404113,1705858375988,-522.59070919,0.00044931,31]
[312404114,1705858375999,-1551.87,0.00044931,31]
[312404115,1705858376010,-549.52,0.00044931,31]
[312404116,1705858376019,-500.0,0.00044931,7]
[312404117,1705858376030,-500.0,0.00044931,31]
[312404118,1705858376040,-4046.77,0.00044931,31]
[312404119,1705858376050,-500.0,0.00044931,31]
[312404120,1705858376061,-527.15706313,0.00044931,31]
[312404121,1705858376071,-695.82,0.00044931,31]
[312404122,1705858376083,-769.33,0.00044931,31]
[312404123,1705858376095,-700.79,0.00044931,31]
[312404124,1705858376106,-375.17522114,0.00044931,31]
[312404125,1705858376116,-500.0,0.00044931,31]
[312404126,1705858376126,-272.94122277,0.00044931,31]
[312404127,1705858376136,-745.29,0.00044931,31]
[312404128,1705858376146,-7045.39,0.00044931,31]
[312404129,1705858376156,-1262.27,0.00044931,31]
[312404130,1705858376167,-500.0,0.00044931,31]
[312404131,1705858376178,-690.37,0.00044931,31]
[312404132,1705858376188,-520.83,0.00044931,31]
[312404133,1705858376198,-500.0,0.00044931,31]
[312404134,1705858376208,-757.17,0.00044931,31]
[312404135,1705858376218,-5696.35,0.00044931,31]
[312404136,1705858376228,-353.81,0.00044931,31]
[312404137,1705858376238,-1837.87,0.00044931,31]
[312404138,1705858376248,-500.0,0.00044931,31]
[312404139,1705858376258,-908.52,0.00044931,31]
[312404140,1705858376268,-500.0,0.00044931,31]
[312404141,1705858376279,-9649.82,0.00044931,31]
[312404142,1705858376289,-1916.53,0.00044931,31]
[312404143,1705858376299,-500.0,0.00044931,31]
[312404144,1705858376308,-1240.43,0.00044931,31]
[312404145,1705858376319,-695.14,0.00044931,31]
[312404146,1705858376329,-500.0,0.00044931,31]
[312404147,1705858376338,-500.0,0.00044931,31]
[312404148,1705858376348,-1114.6,0.00044931,31]
[312404149,1705858376358,-1341.69,0.00044931,31]
[312404150,1705858376368,-921.33,0.00044931,31]
[312404151,1705858376378,-1113.57,0.00044931,31]
[312404152,1705858376388,-5530.48,0.00044931,31]
[312404153,1705858376398,-793.66,0.00044931,31]
[312404154,1705858376408,-500.0,0.00044931,31]
[312404155,1705858376418,-795.91,0.00044931,31]
[312404156,1705858376428,-500.0,0.00044931,31]
[312404157,1705858376438,-500.0,0.00044931,31]
[312404158,1705858376448,-1440.05,0.00044931,31]
[312404159,1705858376458,-3700.14,0.00044931,31]
[312404160,1705858376468,-2092.99,0.00044931,31]
[312404161,1705858376478,-1000.0,0.00044931,2]
[312404162,1705858376487,-745.1,0.00044931,31]
[312404163,1705858376497,-10145.93,0.00044931,31]
[312404164,1705858376506,-1414.9,0.00044931,31]
[312404165,1705858376517,-505.43,0.00044931,31]
[312404166,1705858376527,-521.95,0.00044931,31]
[312404167,1705858376537,-680.26,0.00044931,5]
[312404168,1705858376547,-909.92,0.00044931,31]
[312404169,1705858376557,-500.0,0.00044931,31]
[312404170,1705858376567,-647.36,0.00044931,31]
[312404171,1705858376577,-969.71,0.00044931,31]
[312404172,1705858376587,-4142.89,0.00044931,31]
[312404173,1705858376598,-513.07085031,0.00044931,31]
[312404174,1705858376611,-816.06,0.00044931,31]
[312404175,1705858376621,-500.0,0.00044931,31]
[312404176,1705858376633,-500.0,0.00044931,31]
[312404177,1705858376642,-500.0,0.00044931,31]
[312404178,1705858376654,-2663.37,0.00044931,31]
[312404179,1705858376665,-500.0,0.00044931,31]
[312404180,1705858376677,-696.72,0.00044931,31]
[312404181,1705858376687,-525.38,0.00044931,31]
[312404182,1705858376698,-764.09,0.00044931,31]
[312404183,1705858377002,-500.0,0.00044931,31]
[312404184,1705858377019,-1574.71,0.00044931,31]
[312404185,1705858377029,-500.0,0.00044931,31]
[312404186,1705858377039,-9891.3,0.00044931,31]
[312404187,1705858377049,-932.94,0.00044931,31]
[312404188,1705858377058,-831.28,0.00044931,31]
[312404189,1705858377069,-500.0,0.00044931,31]
[312404190,1705858377082,-1364.93,0.00044931,31]
[312404191,1705858377093,-3404.67,0.00044931,31]
[312404192,1705858377102,-2645.34,0.00044931,31]
[312404193,1705858377112,-735.01,0.00044931,31]
[312404194,1705858377123,-514.6828182,0.00044931,31]
[312404195,1705858377133,-500.0,0.00044931,31]
[312404196,1705858377142,-500.0,0.00044931,31]
[312404197,1705858377152,-5145.07,0.00044931,31]
[312404198,1705858377164,-1174.77,0.00044931,31]
[312404199,1705858377174,-738.19,0.00044931,31]
[312404200,1705858377184,-500.0,0.00044931,31]
[312404201,1705858377194,-14562.01,0.00044931,31]
[312404202,1705858377204,-944.69,0.00044931,31]
[312404203,1705858377215,-1080.05,0.00044931,31]
[312404204,1705858377225,-1450.35,0.00044931,31]
[312404205,1705858377235,-653.64,0.00044931,31]
[312404206,1705858377245,-500.0,0.00044931,31]
[312404207,1705858377255,-500.0,0.00044931,31]
[312404208,1705858377264,-38083.32,0.00044931,31]
[312404209,1705858377274,-772.68,0.00044931,31]
[312404210,1705858377283,-9951.76,0.00044931,31]
[312404211,1705858377293,-996.84,0.00044931,31]
[312404212,1705858377302,-526.57,0.00044931,31]
[312404213,1705858377311,-500.0,0.00044931,31]
[312404214,1705858377321,-1180.64,0.00044931,31]
[312404215,1705858377331,-13566.67,0.00044931,31]
[312404216,1705858377341,-2702.04,0.00044931,31]
[312404217,1705858377350,-2370.4,0.00044931,31]
[312404218,1705858377359,-710.24,0.00044931,31]
[312404219,1705858377368,-500.0,0.00044931,31]
[312404220,1705858377378,-841.85,0.00044931,31]
[312404221,1705858377387,-650.75,0.00044931,31]
[312404222,1705858377397,-500.0,0.00044931,31]
[312404223,1705858377406,-891.39,0.00044931,31]
[312404224,1705858377416,-500.0,0.00044931,31]
[312404225,1705858377426,-500.0,0.00044931,31]
[312404226,1705858377435,-5635.24,0.00044931,31]
[312404227,1705858377444,-500.0,0.00044931,31]
[312404228,1705858377454,-500.0,0.00044931,31]
[312404229,1705858377466,-500.0,0.00044931,31]
[312404230,1705858377476,-337.91966631,0.00044931,31]
[312404231,1705858377485,-2410.09,0.00044931,31]
[312404232,1705858377495,-500.0,0.00044931,30]
[312404233,1705858377504,-1587.22,0.00044931,31]
[312404234,1705858377513,-500.0,0.00044931,31]
[312404235,1705858377523,-2811.02,0.00044931,31]
[312404236,1705858377533,-500.0,0.00044931,31]
[312404237,1705858377543,-1486.68,0.00044931,31]
[312404238,1705858377552,-1020.67,0.00044931,31]
[312404239,1705858377561,-766.24,0.00044931,31]
[312404240,1705858377571,-500.0,0.00044931,31]
[312404241,1705858377580,-500.0,0.00044931,31]
[312404242,1705858377589,-500.0,0.00044931,31]
[312404243,1705858377599,-4475.3,0.00044931,31]
[312404244,1705858377609,-678.56,0.00044931,31]
[312404245,1705858377621,-4341.11,0.00044931,31]
[312404246,1705858377630,-500.0,0.00044931,31]
[312404247,1705858377640,-510.28607874,0.00044931,31]
[312404248,1705858377650,-500.0,0.00044931,31]
[312404249,1705858377661,-893.6,0.00044931,31]
[312404250,1705858377671,-500.0,0.00044931,31]
[312404251,1705858377682,-1312.71,0.00044931,31]
[312404252,1705858377692,-718.8,0.00044931,31]
[312404253,1705858377702,-500.0,0.00044931,31]
[312404254,1705858377713,-1879.16,0.00044931,31]
[312404255,1705858377722,-512.71,0.00044931,31]
[312404256,1705858377732,-843.82,0.00044931,31]
[312404257,1705858377743,-1267.64,0.00044931,31]
[312404258,1705858377754,-808.75,0.00044931,31]
[312404259,1705858377764,-586.73,0.00044931,31]
[312404260,1705858377774,-1163.91,0.00044931,31]
[312404261,1705858377784,-2402.4,0.00044931,31]
[312404262,1705858377794,-500.0,0.00044931,31]
[312404263,1705858377805,-500.0,0.00044931,31]
[312404264,1705858377815,-500.0,0.00044931,31]
[312404265,1705858377826,-1028.17,0.00044931,31]
[312404266,1705858377836,-767.97,0.00044931,31]
[312404267,1705858377847,-822.33,0.00044931,31]
[312404268,1705858377857,-1331.9,0.00044931,31]
[312404269,1705858377867,-1231.24,0.00044931,31]
[312404270,1705858377877,-500.0,0.00044931,31]
[312404271,1705858377888,-951.78,0.00044931,31]
[312404272,1705858377899,-673.38,0.00044931,31]
[312404273,1705858377910,-623.65,0.00044931,31]
[312404274,1705858377938,-4814.61,0.00044931,31]
[312404275,1705858377948,-2661.69,0.00044931,31]
[312404276,1705858377959,-2221.22,0.00044931,31]
[312404277,1705858377968,-1307.43,0.00044931,31]
[312404278,1705858377978,-1998.1,0.00044931,31]
[312404279,1705858377988,-2919.4,0.00044931,31]
[312404280,1705858377998,-500.0,0.00044931,31]
[312404281,1705858378008,-4554.17,0.00044931,31]
[312404282,1705858378017,-1516.66,0.00044931,31]
[312404283,1705858378027,-1723.52,0.00044931,31]
[312404284,1705858378038,-500.0,0.00044931,31]
[312404285,1705858378047,-500.0,0.00044931,31]
[312404286,1705858378057,-715.12,0.00044931,31]
[312404287,1705858378067,-966.48,0.00044931,31]
[312404288,1705858378078,-1024.58,0.00044931,31]
[312404289,1705858378090,-1352.25,0.00044931,31]
[312404290,1705858378100,-500.0,0.00044931,31]
[312404291,1705858378110,-15221.27,0.00044931,31]
[312404292,1705858378120,-1317.11,0.00044931,31]
[312404293,1705858378131,-500.0,0.00044931,31]
[312404294,1705858378141,-801.04,0.00044931,31]
[312404295,1705858378151,-719.66,0.00044931,31]
[312404296,1705858378164,-500.0,0.00044931,31]
[312404297,1705858378174,-2398.67,0.00044931,31]
[312404298,1705858378184,-1102.3,0.00044931,31]
[312404299,1705858378194,-11755.0,0.00044931,31]
[312404300,1705858378203,-2450.04,0.00044931,31]
[312404301,1705858378213,-500.0,0.00044931,31]
[312404302,1705858378223,-580.18,0.00044931,31]
[312404303,1705858378232,-500.0,0.00044931,31]
[312404304,1705858378242,-6029.9,0.00044931,31]
[312404305,1705858378252,-500.0,0.00044931,31]
[312404306,1705858378262,-500.0,0.00044931,31]
[312404307,1705858378271,-4782.28,0.00044931,31]
[312404308,1705858378280,-747.5,0.00044931,31]
[312404309,1705858378290,-1275.11,0.00044931,31]
[312404310,1705858378300,-633.63,0.00044931,31]
[312404311,1705858378311,-1385.95,0.00044931,31]
[312404312,1705858378323,-838.42,0.00044931,31]
[312404313,1705858378334,-1278.23,0.00044931,31]
[312404314,1705858378343,-500.0,0.00044931,31]
[312404315,1705858378356,-659.66,0.00044931,31]
[312404316,1705858378366,-2022.75,0.00044931,31]
[312404317,1705858378377,-848.6,0.00044931,31]
[312404318,1705858378388,-3652.55,0.00044931,31]
[312404319,1705858378398,-3523.18,0.00044931,31]
[312404320,1705858378409,-718.17,0.00044931,31]
[312404321,1705858378419,-898.33,0.00044931,31]
[312404322,1705858378429,-500.0,0.00044931,31]
[312404323,1705858378439,-6799.03,0.00044931,31]
[312404324,1705858378449,-1141.22,0.00044931,31]
[312404325,1705858378459,-1741.89,0.00044931,31]
[312404326,1705858378469,-1623.13,0.00044931,31]
[312404327,1705858378481,-500.0,0.00044931,31]
[312404328,1705858378491,-2338.74,0.00044931,31]
[312404329,1705858378501,-771.85,0.00044931,31]
[312404330,1705858378512,-569.27,0.00044931,31]
[312404331,1705858378522,-1004.91,0.00044931,31]
[312404332,1705858378533,-599.51,0.00044931,31]
[312404333,1705858378545,-683.46,0.00044931,31]
[312404334,1705858378556,-1665.32,0.00044931,31]
[312404335,1705858378566,-1953.86,0.00044931,31]
[312404336,1705858378577,-500.0,0.00044931,31]
[312404337,1705858378587,-1307.02,0.00044931,31]
[312404338,1705858378598,-2015.53,0.00044931,31]
[312404339,1705858378607,-1641.41,0.00044931,31]
[312404340,1705858378617,-1542.52,0.00044931,31]
[312404341,1705858378628,-1132.72,0.00044931,31]
[312404342,1705858378638,-500.0,0.00044931,31]
[312404343,1705858378647,-536.23,0.00044931,31]
[312404344,1705858378658,-500.0,0.00044931,7]
[312404345,1705858378667,-500.0,0.00044931,31]
[312404346,1705858378676,-500.0,0.00044931,31]
[312404347,1705858378686,-500.0,0.00044931,31]
[312404348,1705858378695,-860.42,0.00044931,31]
[312404349,1705858378705,-639.35,0.00044931,31]
[312404350,1705858378716,-500.0,0.00044931,31]
[312404351,1705858378726,-529.07,0.00044931,31]
[312404352,1705858378737,-500.0,0.00044931,31]
[312404353,1705858378747,-1102.2,0.00044931,31]
[312404354,1705858378757,-2003.86,0.00044931,31]
[312404355,1705858378767,-500.0,0.00044931,5]
[312404356,1705858378776,-2129.93,0.00044931,31]
[312404357,1705858378785,-971.37,0.00044931,31]
[312404358,1705858378795,-511.72923373,0.00044931,31]
[312404359,1705858378805,-500.0,0.00044931,31]
[312404360,1705858378815,-301.13640769,0.00044931,31]
[312404361,1705858378824,-1208.05,0.00044931,31]
[312404362,1705858378834,-3628.57,0.00044931,31]
[312404363,1705858378844,-4143.87,0.00044931,31]
[312404364,1705858378854,-563.17,0.00044931,31]
[312404365,1705858378864,-8492.56,0.00044931,31]
[312404366,1705858378874,-3744.16,0.00044931,31]
[312404367,1705858378884,-555.83,0.00044931,10]
[312404368,1705858378894,-2561.14,0.00044931,31]
[312404369,1705858378904,-500.0,0.00044931,31]
[312404370,1705858378913,-1207.99,0.00044931,31]
[312404371,1705858378923,-1152.01,0.00044931,31]
[312404372,1705858378932,-1944.17,0.00044931,31]
[312404373,1705858378941,-688.17,0.00044931,31]
[312404374,1705858378951,-766.84,0.00044931,31]
[312404375,1705858378961,-726.63,0.00044931,31]
[312404376,1705858378973,-500.0,0.00044931,31]
[312404377,1705858378983,-4478.54,0.00044931,31]
[312404378,1705858378994,-1741.83,0.00044931,31]
[312404379,1705858379004,-4116.72,0.00044931,31]
[312404380,1705858379014,-2317.89,0.00044931,31]
[312404381,1705858379023,-719.71,0.00044931,31]
[312404382,1705858379033,-778.89,0.00044931,31]
[312404383,1705858379044,-17414.88,0.00044931,31]
[312404384,1705858379053,-1683.36,0.00044931,31]
[312404385,1705858379064,-1457.58,0.00044931,31]
[312404386,1705858379075,-506.89,0.00044931,31]
[312404387,1705858379087,-284.63057914,0.00044931,31]
[312404388,1705858379096,-585.2,0.00044931,31]
[312404389,1705858379106,-712.61,0.00044931,31]
[312404390,1705858379116,-777.78,0.00044931,31]
[312404391,1705858379126,-1992.63,0.00044931,31]
[312404392,1705858379137,-1297.78,0.00044931,31]
[312404393,1705858379146,-1673.34,0.00044931,31]
[312404394,1705858379156,-500.0,0.00044931,2]
[312404395,1705858379167,-1276.24,0.00044931,31]
[312404396,1705858379177,-1515.16,0.00044931,31]
[312404397,1705858379186,-676.02,0.00044931,31]
[312404398,1705858379196,-519.99,0.00044931,31]
[312404399,1705858379206,-832.1,0.00044931,31]
[312404400,1705858379216,-500.0,0.00044931,31]
[312404401,1705858379225,-1114.3,0.00044931,31]
[312404402,1705858379235,-559.3,0.00044931,31]
[312404403,1705858379244,-617.68,0.00044931,31]
[312404404,1705858379254,-4316.85,0.00044931,31]
[312404405,1705858379263,-698.31,0.00044931,31]
[312404406,1705858379273,-500.0,0.00044931,31]
[312404407,1705858379283,-15611.05,0.00044931,31]
[312404408,1705858379293,-1105.83,0.00044931,31]
[312404409,1705858379302,-500.0,0.00044931,31]
[312404410,1705858379312,-578.73,0.00044931,31]
[312404411,1705858379322,-500.0,0.00044931,31]
[312404412,1705858379333,-758.0,0.00044931,31]
[312404413,1705858379342,-500.0,0.00044931,31]
[312404414,1705858379351,-3781.38,0.00044931,31]
[312404415,1705858379360,-488.30301791,0.00044931,31]
[312404416,1705858379370,-570.79,0.00044931,31]
[312404417,1705858379380,-5511.39,0.00044931,31]
[312404418,1705858379390,-1000.0,0.00044931,30]
[312404419,1705858379401,-1748.73,0.00044931,31]
[312404420,1705858379518,-1977.31,0.00044931,31]
[312404421,1705858379527,-500.0,0.00044931,31]
[312404422,1705858379536,-500.0,0.00044931,31]
[312404423,1705858379546,-997.22,0.00044931,31]
[312404424,1705858379556,-682.73,0.00044931,31]
[312404425,1705858379566,-1819.37,0.00044931,31]
[312404426,1705858379576,-915.75,0.00044931,31]
[312404427,1705858379586,-908.78,0.00044931,31]
[312404428,1705858379596,-537.99,0.00044931,30]
[312404429,1705858379606,-1258.24,0.00044931,31]
[312404430,1705858379617,-433.77032757,0.00044931,31]
[312404431,1705858379626,-1270.4,0.00044931,31]
[312404432,1705858379635,-1625.11,0.00044931,31]
[312404433,1705858379645,-2077.28,0.00044931,31]
[312404434,1705858379655,-500.0,0.00044931,31]
[312404435,1705858379667,-500.0,0.00044931,31]
[312404436,1705858379679,-1216.0,0.00044931,31]
[312404437,1705858379689,-2480.88,0.00044931,31]
[312404438,1705858379698,-2428.09,0.00044931,31]
[312404439,1705858379707,-500.0,0.00044931,31]
[312404440,1705858379716,-940.03,0.00044931,31]
[312404441,1705858379725,-742.17,0.00044931,31]
[312404442,1705858379734,-2895.16,0.00044931,31]
[312404443,1705858379745,-638.01,0.00044931,31]
[312404444,1705858379753,-500.0,0.00044931,2]
[312404445,1705858379765,-958.94,0.00044931,31]
[312404446,1705858379775,-653.31,0.00044931,31]
[312404447,1705858379786,-3096.04,0.00044931,31]
[312404448,1705858379797,-2622.21,0.00044931,31]
[312404449,1705858379807,-1315.5,0.00044931,31]
[312404450,1705858379816,-906.52,0.00044931,31]
[312404451,1705858379826,-539.71,0.00044931,31]
[312404452,1705858379835,-1262.2,0.00044931,31]
[312404453,1705858379846,-2322.86,0.00044931,31]
[312404454,1705858379855,-1416.87,0.00044931,31]
[312404455,1705858379864,-1205.84,0.00044931,31]
[312404456,1705858379874,-625.74,0.00044931,31]
[312404457,1705858379884,-4179.57,0.00044931,31]
[312404458,1705858379895,-526.75,0.00044931,31]
[312404459,1705858379905,-992.96,0.00044931,31]
[312404460,1705858379914,-500.0,0.00044931,31]
[312404461,1705858379924,-815.51,0.00044931,31]
[312404462,1705858379934,-500.0,0.00044931,31]
[312404463,1705858379944,-547.37,0.00044931,2]
[312404464,1705858379954,-500.0,0.00044931,31]
[312404465,1705858379963,-500.0,0.00044931,31]
[312404466,1705858379972,-500.0,0.00044931,31]
[312404467,1705858379983,-1425.95,0.00044931,31]
[312404468,1705858379992,-981.19,0.00044931,31]
[312404469,1705858380003,-500.0,0.00044931,31]
[312404470,1705858380013,-827.44,0.00044931,31]
[312404471,1705858380023,-10855.62,0.00044931,31]
[312404472,1705858380032,-1200.56,0.00044931,31]
[312404473,1705858380042,-1017.46,0.00044931,31]
[312404474,1705858380053,-500.0,0.00044931,31]
[312404475,1705858380063,-9610.43,0.00044931,31]
[312404476,1705858380074,-400.0,0.00044932,120]
[312404477,1705858380088,-211.89940388,0.0004495,120]
[312404478,1705858380097,-437.65864481,0.0004498,3]
[312404479,1705858380107,-868.99100855,0.0004498,3]
[312404480,1705858380116,-257.4099092,0.0004498,3]
[312404481,1705858380127,-810.0,0.0004498,3]
[312404482,1705858380136,-2010.4,0.0004498,2]
[312404483,1705858380145,-200.0,0.00044987,39]
[312404484,1705858380156,-200.0,0.00044987,45]
[312404485,1705858380166,-51976.0,0.0004499,3]
[312404486,1705858380176,-5000.0,0.00044993,4]
[312404487,1705858380186,-2861.86619036,0.00044999,7]
[312404488,1705858380196,-5001.83275011,0.00044999,2]
[312404489,1705858380205,-1134.80693948,0.00044999,120]
[312404490,1705858380214,-50000.0,0.00045,25]
[312404491,1705858380224,-1000.0,0.00045,2]
[312404492,1705858380233,-300.0,0.00045,20]
[312404493,1705858380242,-3010.0,0.00045,14]
[312404494,1705858380252,-5661.10523317,0.00045,7]
[312404495,1705858380262,-52320.6,0.00045,5]
[312404496,1705858380272,-4072.5,0.00045,5]
[312404497,1705858380281,-150.0,0.00045,10]
[312404498,1705858380290,-445.77545464,0.00045,15]
[312404499,1705858380300,-16326.00393039,0.00045,2]
[312404500,1705858380309,-1000.0,0.00045,2]
[312404501,1705858380318,-1000.0,0.00045,2]
[312404502,1705858380327,-150.0,0.00045,20]
[312404503,1705858380336,-251.08,0.00045,14]
[312404504,1705858380346,-500.0,0.00045,4]
[312404505,1705858380355,-500.0,0.00045,4]